[Event "Titled Tuesday Blitz February 28 Early 2023"]
[White "Vaibhav Jayant Raut"]
[Black "Matveeva, Olga"]
[WhiteFideId "5089034"]
[BlackFideId "24107018"]
[WhiteElo "2156"]
[BlackElo "2056"]
[Result "1-0"]
[Round "01"]
[TimeControl "180+2"]
[Date "2023.02.28"]
[WhiteClock "0:00:13"]
[BlackClock "0:00:01"]

1. d4 {[%clk 0:02:58]}  d5 {[%clk 0:02:59]} 2. Nf3 {[%clk 0:02:58]}  Nf6 {[%clk 0:02:59]} 3. c4 {[%clk 0:02:58]}  e6 {[%clk 0:02:58]} 4. Nc3 {[%clk 0:02:57]}  Be7 {[%clk 0:02:56]} 5. Bg5 {[%clk 0:02:57]}  O-O {[%clk 0:02:54]} 6. e3 {[%clk 0:02:55]}  Nbd7 {[%clk 0:02:53]} 7. Be2 {[%clk 0:02:53]}  dxc4 {[%clk 0:02:52]} 8. Bxc4 {[%clk 0:02:47]}  c5 {[%clk 0:02:51]} 9. dxc5 {[%clk 0:02:37]}  Nxc5 {[%clk 0:02:52]} 10. O-O {[%clk 0:02:35]}  b6 {[%clk 0:02:39]} 11. Qe2 {[%clk 0:02:03]}  Bb7 {[%clk 0:02:21]} 12. Rfd1 {[%clk 0:01:59]}  Qc7 {[%clk 0:02:03]} 13. Bf4 {[%clk 0:01:50]}  Qc6 {[%clk 0:01:45]} 14. Bb5 {[%clk 0:01:46]}  Qc8 {[%clk 0:01:43]} 15. Rac1 {[%clk 0:01:43]}  Rd8 {[%clk 0:01:24]} 16. Rxd8+ {[%clk 0:01:29]}  Qxd8 {[%clk 0:01:23]} 17. Rd1 {[%clk 0:01:30]}  Qf8 {[%clk 0:01:19]} 18. h3 {[%clk 0:01:20]}  Rd8 {[%clk 0:01:07]} 19. Rxd8 {[%clk 0:00:59]}  Qxd8 {[%clk 0:01:08]} 20. a3 {[%clk 0:00:53]}  h6 {[%clk 0:01:07]} 21. b4 {[%clk 0:00:49]}  Nce4 {[%clk 0:01:06]} 22. Nxe4 {[%clk 0:00:49]}  Nxe4 {[%clk 0:01:07]} 23. Qd3 {[%clk 0:00:46]}  Qxd3 {[%clk 0:00:59]} 24. Bxd3 {[%clk 0:00:45]}  Kf8 {[%clk 0:00:53]} 25. Ne5 {[%clk 0:00:37]}  g5 {[%clk 0:00:20]} 26. Bh2 {[%clk 0:00:35]}  Kg7 {[%clk 0:00:14]} 27. Nd7 {[%clk 0:00:28]}  Bd6 {[%clk 0:00:11]} 28. Bxd6 {[%clk 0:00:24]}  Nxd6 {[%clk 0:00:12]} 29. Ne5 {[%clk 0:00:25]}  Kf6 {[%clk 0:00:11]} 30. Ng4+ {[%clk 0:00:22]}  Kg7 {[%clk 0:00:11]} 31. f3 {[%clk 0:00:23]}  f5 {[%clk 0:00:10]} 32. Ne5 {[%clk 0:00:20]}  Kf6 {[%clk 0:00:11]} 33. Nc4 {[%clk 0:00:20]}  Nxc4 {[%clk 0:00:10]} 34. Bxc4 {[%clk 0:00:20]}  Ke5 {[%clk 0:00:10]} 35. Kf2 {[%clk 0:00:21]}  Bd5 {[%clk 0:00:10]} 36. Bd3 {[%clk 0:00:20]}  Kd6 {[%clk 0:00:09]} 37. g4 {[%clk 0:00:18]}  Ke5 {[%clk 0:00:08]} 38. Bb5 {[%clk 0:00:14]}  Bb7 {[%clk 0:00:08]} 39. Kg3 {[%clk 0:00:14]}  Ba8 {[%clk 0:00:07]} 40. Bd3 {[%clk 0:00:12]}  Bb7 {[%clk 0:00:07]} 41. f4+ {[%clk 0:00:12]}  gxf4+ {[%clk 0:00:06]} 42. exf4+ {[%clk 0:00:13]}  Kf6 {[%clk 0:00:04]} 43. gxf5 {[%clk 0:00:13]}  exf5 {[%clk 0:00:04]} 44. Kf2 {[%clk 0:00:14]}  Ke6 {[%clk 0:00:04]} 45. Ke3 {[%clk 0:00:14]}  Bc6 {[%clk 0:00:03]} 46. Kd4 {[%clk 0:00:14]}  Bb7 {[%clk 0:00:03]} 47. Bc4+ {[%clk 0:00:14]}  Kd6 {[%clk 0:00:03]} 48. Bf7 {[%clk 0:00:13]}  Bc8 {[%clk 0:00:02]} 49. h4 {[%clk 0:00:13]}  Bd7 {[%clk 0:00:02]} 50. Bg6 {[%clk 0:00:14]}  Bc8 {[%clk 0:00:02]} 51. Kc4 {[%clk 0:00:13]}  Bd7 {[%clk 0:00:02]} 52. Bf7 {[%clk 0:00:12]}  Bc8 {[%clk 0:00:01]} 53. a4 {[%clk 0:00:13]} 1-0


[Site "https://www.chess.com"]

[Event "Titled Tuesday Blitz February 28 Early 2023"]
[White "Kovacsy, Barnabas"]
[Black "Belozerov, Andrei"]
[WhiteFideId "769290"]
[BlackFideId "4120213"]
[WhiteElo "2130"]
[BlackElo "2360"]
[Result "0-1"]
[Round "01"]
[TimeControl "180+2"]
[Date "2023.02.28"]
[WhiteClock "0:00:19"]
[BlackClock "0:00:17"]

1. e4 {[%clk 0:02:59]}  c5 {[%clk 0:02:59]} 2. Nf3 {[%clk 0:02:59]}  Nc6 {[%clk 0:02:59]} 3. d4 {[%clk 0:02:59]}  cxd4 {[%clk 0:02:59]} 4. Nxd4 {[%clk 0:03:00]}  g6 {[%clk 0:02:59]} 5. c4 {[%clk 0:02:59]}  Bg7 {[%clk 0:02:59]} 6. Be3 {[%clk 0:02:59]}  Nf6 {[%clk 0:02:59]} 7. Nc3 {[%clk 0:02:59]}  d6 {[%clk 0:03:00]} 8. Be2 {[%clk 0:02:57]}  O-O {[%clk 0:02:59]} 9. O-O {[%clk 0:02:57]}  Nxd4 {[%clk 0:02:56]} 10. Bxd4 {[%clk 0:02:57]}  Bd7 {[%clk 0:02:56]} 11. Qd2 {[%clk 0:02:55]}  Bc6 {[%clk 0:02:55]} 12. f3 {[%clk 0:02:55]}  a5 {[%clk 0:02:55]} 13. b3 {[%clk 0:02:51]}  Nd7 {[%clk 0:02:54]} 14. Bf2 {[%clk 0:02:49]}  Nc5 {[%clk 0:02:52]} 15. Rab1 {[%clk 0:02:47]}  Qb6 {[%clk 0:02:51]} 16. a3 {[%clk 0:02:41]}  Qc7 {[%clk 0:01:55]} 17. b4 {[%clk 0:02:36]}  axb4 {[%clk 0:01:54]} 18. axb4 {[%clk 0:02:36]}  Na4 {[%clk 0:01:52]} 19. Bd4 {[%clk 0:02:21]}  Bxd4+ {[%clk 0:01:36]} 20. Qxd4 {[%clk 0:02:21]}  Nxc3 {[%clk 0:01:36]} 21. Qxc3 {[%clk 0:02:22]}  Ra2 {[%clk 0:01:36]} 22. Bd3 {[%clk 0:02:08]}  Rfa8 {[%clk 0:01:33]} 23. Ra1 {[%clk 0:02:00]}  Qb6+ {[%clk 0:01:27]} 24. c5 {[%clk 0:02:00]}  dxc5 {[%clk 0:01:22]} 25. bxc5 {[%clk 0:01:59]}  Qa5 {[%clk 0:01:14]} 26. Qxa5 {[%clk 0:01:47]}  R8xa5 {[%clk 0:01:14]} 27. Rxa2 {[%clk 0:01:47]}  Rxa2 {[%clk 0:01:15]} 28. Rc1 {[%clk 0:01:46]}  Kg7 {[%clk 0:01:09]} 29. Rc2 {[%clk 0:01:45]}  Ra3 {[%clk 0:01:00]} 30. Bc4 {[%clk 0:01:32]}  g5 {[%clk 0:00:58]} 31. Kf2 {[%clk 0:01:30]}  Kf6 {[%clk 0:00:58]} 32. g3 {[%clk 0:01:25]}  e6 {[%clk 0:00:56]} 33. Ke2 {[%clk 0:00:57]}  Ke5 {[%clk 0:00:53]} 34. Bd3 {[%clk 0:00:51]}  f5 {[%clk 0:00:36]} 35. exf5 {[%clk 0:00:41]}  exf5 {[%clk 0:00:36]} 36. h4 {[%clk 0:00:31]}  gxh4 {[%clk 0:00:33]} 37. f4+ {[%clk 0:00:30]}  Kd4 {[%clk 0:00:22]} 38. Rc4+ {[%clk 0:00:30]}  Kd5 {[%clk 0:00:22]} 39. Rc1 {[%clk 0:00:22]}  hxg3 {[%clk 0:00:20]} 40. Rg1 {[%clk 0:00:22]}  Kd4 {[%clk 0:00:18]} 41. Rxg3 {[%clk 0:00:19]}  Bb5 {[%clk 0:00:17]} 0-1


[Site "https://www.chess.com"]

[Event "Titled Tuesday Blitz February 28 Early 2023"]
[White "Begunov, Konstantin"]
[Black "Sadubayev, Airat"]
[WhiteFideId "4118510"]
[BlackFideId "13713264"]
[WhiteElo "2118"]
[BlackElo "2101"]
[Result "0-1"]
[Round "01"]
[TimeControl "180+2"]
[Date "2023.02.28"]
[WhiteClock "0:00:01"]
[BlackClock "0:01:20"]

1. d4 {[%clk 0:02:46]}  d5 {[%clk 0:02:59]} 2. c4 {[%clk 0:02:45]}  e6 {[%clk 0:02:59]} 3. Nc3 {[%clk 0:02:46]}  c5 {[%clk 0:02:58]} 4. cxd5 {[%clk 0:02:45]}  exd5 {[%clk 0:02:59]} 5. Nf3 {[%clk 0:02:45]}  Nc6 {[%clk 0:02:58]} 6. g3 {[%clk 0:02:46]}  Nf6 {[%clk 0:02:58]} 7. Bg2 {[%clk 0:02:46]}  cxd4 {[%clk 0:02:58]} 8. Nxd4 {[%clk 0:02:45]}  Bc5 {[%clk 0:02:58]} 9. Nxc6 {[%clk 0:02:43]}  bxc6 {[%clk 0:02:58]} 10. O-O {[%clk 0:02:44]}  O-O {[%clk 0:02:56]} 11. Na4 {[%clk 0:02:33]}  Bb6 {[%clk 0:02:48]} 12. Bf4 {[%clk 0:02:22]}  Re8 {[%clk 0:02:45]} 13. Rc1 {[%clk 0:02:19]}  Ba6 {[%clk 0:02:43]} 14. Re1 {[%clk 0:02:11]}  Bb5 {[%clk 0:02:25]} 15. Nc5 {[%clk 0:01:46]}  Bxc5 {[%clk 0:02:15]} 16. Rxc5 {[%clk 0:01:44]}  Qb6 {[%clk 0:02:15]} 17. Be3 {[%clk 0:01:31]}  Rxe3 {[%clk 0:02:10]} 18. Rxb5 {[%clk 0:01:27]}  cxb5 {[%clk 0:02:09]} 19. fxe3 {[%clk 0:01:26]}  Qxe3+ {[%clk 0:02:10]} 20. Kh1 {[%clk 0:01:25]}  Ng4 {[%clk 0:02:08]} 21. Rf1 {[%clk 0:00:49]}  Nf2+ {[%clk 0:02:07]} 22. Rxf2 {[%clk 0:00:50]}  Qxf2 {[%clk 0:02:08]} 23. Bxd5 {[%clk 0:00:49]}  Re8 {[%clk 0:02:04]} 24. Bf3 {[%clk 0:00:39]}  g6 {[%clk 0:02:00]} 25. g4 {[%clk 0:00:18]}  a6 {[%clk 0:01:57]} 26. b4 {[%clk 0:00:18]}  Qe3 {[%clk 0:01:50]} 27. Qd7 {[%clk 0:00:17]}  Qe6 {[%clk 0:01:46]} 28. Qd4 {[%clk 0:00:16]}  Qe7 {[%clk 0:01:43]} 29. Kg2 {[%clk 0:00:15]}  Rd8 {[%clk 0:01:43]} 30. Qb6 {[%clk 0:00:15]}  Rd6 {[%clk 0:01:42]} 31. Qc5 {[%clk 0:00:13]}  Re6 {[%clk 0:01:37]} 32. Qd4 {[%clk 0:00:13]}  Qd6 {[%clk 0:01:35]} 33. Qa7 {[%clk 0:00:12]}  Kg7 {[%clk 0:01:34]} 34. Qa8 {[%clk 0:00:10]}  Qxb4 {[%clk 0:01:31]} 35. Qd5 {[%clk 0:00:08]}  Qd6 {[%clk 0:01:30]} 36. Qb7 {[%clk 0:00:08]}  h6 {[%clk 0:01:27]} 37. Kh3 {[%clk 0:00:07]}  Qe5 {[%clk 0:01:26]} 38. Qa8 {[%clk 0:00:04]}  Rd6 {[%clk 0:01:26]} 39. Qb8 {[%clk 0:00:02]}  a5 {[%clk 0:01:21]} 40. Qc7 {[%clk 0:00:01]}  b4 {[%clk 0:01:20]} 0-1


[Site "https://www.chess.com"]

[Event "Titled Tuesday Blitz February 28 Early 2023"]
[White "Mika, Tomasz"]
[Black "Skvortsov, Andrei"]
[WhiteFideId "1132970"]
[BlackFideId "24108600"]
[WhiteElo "2179"]
[BlackElo "2259"]
[Result "0-1"]
[Round "01"]
[TimeControl "180+2"]
[Date "2023.02.28"]
[WhiteClock "0:00:23"]
[BlackClock "0:01:10"]

1. b3 {[%clk 0:03:00]}  e5 {[%clk 0:02:57]} 2. Bb2 {[%clk 0:03:00]}  Nc6 {[%clk 0:02:58]} 3. e3 {[%clk 0:03:00]}  Nge7 {[%clk 0:02:58]} 4. d4 {[%clk 0:02:57]}  exd4 {[%clk 0:02:57]} 5. exd4 {[%clk 0:02:57]}  d5 {[%clk 0:02:56]} 6. Nf3 {[%clk 0:02:57]}  g6 {[%clk 0:02:56]} 7. Bd3 {[%clk 0:02:56]}  Bg7 {[%clk 0:02:56]} 8. O-O {[%clk 0:02:55]}  O-O {[%clk 0:02:55]} 9. h3 {[%clk 0:02:55]}  Bf5 {[%clk 0:02:51]} 10. Re1 {[%clk 0:02:56]}  Bxd3 {[%clk 0:02:46]} 11. Qxd3 {[%clk 0:02:55]}  Nf5 {[%clk 0:02:46]} 12. Nbd2 {[%clk 0:02:51]}  Nb4 {[%clk 0:02:40]} 13. Qc3 {[%clk 0:02:40]}  c5 {[%clk 0:02:40]} 14. Qxc5 {[%clk 0:02:27]}  a5 {[%clk 0:02:38]} 15. Re2 {[%clk 0:00:52]}  Rc8 {[%clk 0:02:30]} 16. Qa7 {[%clk 0:00:52]}  Nd6 {[%clk 0:01:42]} 17. a4 {[%clk 0:00:25]}  Rxc2 {[%clk 0:01:09]} 18. Ba3 {[%clk 0:00:23]}  Nc6 {[%clk 0:01:10]} 0-1


[Site "https://www.chess.com"]

[Event "Titled Tuesday Blitz February 28 Early 2023"]
[White "Alex_Sahakyan2006"]
[Black "Qashashvili, Alexandre"]
[BlackFideId "13600842"]
[WhiteElo "2645"]
[BlackElo "2405"]
[Result "1-0"]
[Round "01"]
[TimeControl "180+2"]
[Date "2023.02.28"]
[WhiteClock "0:00:10"]
[BlackClock "0:00:17"]

1. Nf3 {[%clk 0:02:59]}  c6 {[%clk 0:02:58]} 2. c4 {[%clk 0:02:57]}  d5 {[%clk 0:02:58]} 3. e3 {[%clk 0:02:55]}  Nf6 {[%clk 0:02:58]} 4. Nc3 {[%clk 0:02:55]}  Bf5 {[%clk 0:02:57]} 5. cxd5 {[%clk 0:02:50]}  Nxd5 {[%clk 0:02:57]} 6. d4 {[%clk 0:02:45]}  e6 {[%clk 0:02:56]} 7. Bd3 {[%clk 0:02:40]}  Bxd3 {[%clk 0:02:56]} 8. Qxd3 {[%clk 0:02:41]}  Nd7 {[%clk 0:02:53]} 9. O-O {[%clk 0:02:40]}  Be7 {[%clk 0:02:52]} 10. Rd1 {[%clk 0:02:37]}  O-O {[%clk 0:02:52]} 11. e4 {[%clk 0:02:37]}  Nxc3 {[%clk 0:02:51]} 12. bxc3 {[%clk 0:02:38]}  Qc7 {[%clk 0:02:47]} 13. a4 {[%clk 0:02:35]}  b6 {[%clk 0:02:46]} 14. Qe2 {[%clk 0:02:30]}  c5 {[%clk 0:02:45]} 15. d5 {[%clk 0:02:30]}  exd5 {[%clk 0:02:46]} 16. exd5 {[%clk 0:02:31]}  Bf6 {[%clk 0:02:45]} 17. Qc2 {[%clk 0:02:04]}  Rfe8 {[%clk 0:02:40]} 18. Bg5 {[%clk 0:02:04]}  h6 {[%clk 0:02:31]} 19. Bxf6 {[%clk 0:02:04]}  Nxf6 {[%clk 0:02:31]} 20. c4 {[%clk 0:02:04]}  Qf4 {[%clk 0:02:27]} 21. Re1 {[%clk 0:02:01]}  Re4 {[%clk 0:02:08]} 22. Rxe4 {[%clk 0:01:58]}  Qxe4 {[%clk 0:02:07]} 23. Qxe4 {[%clk 0:01:55]}  Nxe4 {[%clk 0:02:08]} 24. a5 {[%clk 0:01:56]}  bxa5 {[%clk 0:02:00]} 25. Rxa5 {[%clk 0:01:57]}  Rb8 {[%clk 0:01:59]} 26. h3 {[%clk 0:01:46]}  Rb4 {[%clk 0:01:59]} 27. Ne5 {[%clk 0:01:42]}  f6 {[%clk 0:01:58]} 28. Nc6 {[%clk 0:01:25]}  Rxc4 {[%clk 0:01:56]} 29. Rxa7 {[%clk 0:01:25]}  Rc1+ {[%clk 0:01:51]} 30. Kh2 {[%clk 0:01:25]}  Rd1 {[%clk 0:01:50]} 31. f4 {[%clk 0:01:17]}  f5 {[%clk 0:01:37]} 32. Ne7+ {[%clk 0:01:01]}  Kf8 {[%clk 0:01:29]} 33. Nxf5 {[%clk 0:00:56]}  Rxd5 {[%clk 0:01:29]} 34. Nxg7 {[%clk 0:00:57]}  c4 {[%clk 0:01:26]} 35. Ne6+ {[%clk 0:00:57]}  Kg8 {[%clk 0:01:20]} 36. Rg7+ {[%clk 0:00:57]}  Kh8 {[%clk 0:01:20]} 37. Rc7 {[%clk 0:00:58]}  c3 {[%clk 0:01:18]} 38. Rc4 {[%clk 0:00:32]}  Rd1 {[%clk 0:01:18]} 39. f5 {[%clk 0:00:23]}  h5 {[%clk 0:01:15]} 40. h4 {[%clk 0:00:15]}  Rf1 {[%clk 0:01:05]} 41. Nd4 {[%clk 0:00:09]}  Rf2 {[%clk 0:00:36]} 42. Nb3 {[%clk 0:00:06]}  Nf6 {[%clk 0:00:27]} 43. Rxc3 {[%clk 0:00:06]}  Rxf5 {[%clk 0:00:27]} 44. Rf3 {[%clk 0:00:05]}  Ng4+ {[%clk 0:00:26]} 45. Kg3 {[%clk 0:00:06]}  Rb5 {[%clk 0:00:24]} 46. Nd4 {[%clk 0:00:06]}  Rb4 {[%clk 0:00:22]} 47. Rf5 {[%clk 0:00:06]}  Rxd4 {[%clk 0:00:20]} 48. Rxh5+ {[%clk 0:00:06]}  Nh6 {[%clk 0:00:17]} 49. Rxh6+ {[%clk 0:00:06]}  Kg7 {[%clk 0:00:17]} 50. Rh5 {[%clk 0:00:07]}  Kg6 {[%clk 0:00:17]} 51. Rg5+ {[%clk 0:00:08]}  Kh6 {[%clk 0:00:17]} 52. Kh3 {[%clk 0:00:08]}  Rd3+ {[%clk 0:00:17]} 53. g3 {[%clk 0:00:09]}  Rd1 {[%clk 0:00:18]} 54. Ra5 {[%clk 0:00:09]}  Rd4 {[%clk 0:00:18]} 55. Ra6+ {[%clk 0:00:09]}  Kg7 {[%clk 0:00:17]} 56. h5 {[%clk 0:00:10]}  Rb4 {[%clk 0:00:17]} 57. g4 {[%clk 0:00:10]}  Kh7 {[%clk 0:00:17]} 58. Kh4 {[%clk 0:00:10]}  Ra4 {[%clk 0:00:17]} 59. Rxa4 {[%clk 0:00:10]} 1-0


[Site "https://www.chess.com"]

[Event "Titled Tuesday Blitz February 28 Early 2023"]
[White "Trent, Lawrence"]
[Black "Alahakoon, Isuru"]
[WhiteFideId "408638"]
[BlackFideId "9900993"]
[WhiteElo "2458"]
[BlackElo "1995"]
[Result "1-0"]
[Round "01"]
[TimeControl "180+2"]
[Date "2023.02.28"]
[WhiteClock "0:02:17"]
[BlackClock "0:00:29"]

1. d4 {[%clk 0:03:00]}  d5 {[%clk 0:02:59]} 2. Nc3 {[%clk 0:03:00]}  Nf6 {[%clk 0:02:59]} 3. Bf4 {[%clk 0:03:00]}  e6 {[%clk 0:02:59]} 4. e3 {[%clk 0:02:59]}  a6 {[%clk 0:02:56]} 5. g4 {[%clk 0:02:59]}  c5 {[%clk 0:02:54]} 6. g5 {[%clk 0:02:59]}  Nfd7 {[%clk 0:02:52]} 7. h4 {[%clk 0:02:59]}  Nc6 {[%clk 0:02:51]} 8. Nf3 {[%clk 0:02:59]}  Qb6 {[%clk 0:02:41]} 9. Rb1 {[%clk 0:02:58]}  cxd4 {[%clk 0:02:38]} 10. exd4 {[%clk 0:02:59]}  Bb4 {[%clk 0:02:22]} 11. a3 {[%clk 0:02:57]}  Be7 {[%clk 0:02:17]} 12. Bg2 {[%clk 0:02:55]}  Nf8 {[%clk 0:02:11]} 13. h5 {[%clk 0:02:55]}  Qd8 {[%clk 0:02:10]} 14. Qd2 {[%clk 0:02:50]}  Bd6 {[%clk 0:02:09]} 15. Kf1 {[%clk 0:02:47]}  Ne7 {[%clk 0:02:08]} 16. Re1 {[%clk 0:02:46]}  b5 {[%clk 0:01:59]} 17. Ne5 {[%clk 0:02:28]}  Bb7 {[%clk 0:01:55]} 18. h6 {[%clk 0:02:26]}  g6 {[%clk 0:01:54]} 19. Ng4 {[%clk 0:02:25]}  Kd7 {[%clk 0:01:07]} 20. Bxd6 {[%clk 0:02:19]}  Kxd6 {[%clk 0:01:08]} 21. Qf4+ {[%clk 0:02:16]}  Kd7 {[%clk 0:01:07]} 22. Ne5+ {[%clk 0:02:17]}  Kc8 {[%clk 0:01:06]} 23. Nxf7 {[%clk 0:02:18]}  Qe8 {[%clk 0:00:29]} 24. Nd6+ {[%clk 0:02:17]} 1-0


[Site "https://www.chess.com"]

[Event "Titled Tuesday Blitz February 28 Early 2023"]
[White "Cheng, Xiao"]
[Black "Atakhan, Abtin"]
[WhiteFideId "2022915"]
[BlackFideId "22502203"]
[WhiteElo "2334"]
[BlackElo "2189"]
[Result "0-1"]
[Round "01"]
[TimeControl "180+2"]
[Date "2023.02.28"]
[WhiteClock "0:00:26"]
[BlackClock "0:00:06"]

1. e4 {[%clk 0:02:50]}  c5 {[%clk 0:02:59]} 2. Nf3 {[%clk 0:02:49]}  d6 {[%clk 0:02:59]} 3. d4 {[%clk 0:02:48]}  cxd4 {[%clk 0:03:00]} 4. Nxd4 {[%clk 0:02:49]}  Nf6 {[%clk 0:03:00]} 5. Nc3 {[%clk 0:02:49]}  a6 {[%clk 0:03:01]} 6. Be3 {[%clk 0:02:44]}  e5 {[%clk 0:03:01]} 7. Nb3 {[%clk 0:02:44]}  Be7 {[%clk 0:03:01]} 8. f3 {[%clk 0:02:44]}  Be6 {[%clk 0:03:01]} 9. Qd2 {[%clk 0:02:44]}  h5 {[%clk 0:03:01]} 10. O-O-O {[%clk 0:02:41]}  Nbd7 {[%clk 0:03:01]} 11. Nd5 {[%clk 0:02:41]}  Nxd5 {[%clk 0:02:58]} 12. exd5 {[%clk 0:02:41]}  Bf5 {[%clk 0:02:58]} 13. Bd3 {[%clk 0:02:38]}  Bxd3 {[%clk 0:02:58]} 14. Qxd3 {[%clk 0:02:39]}  Bg5 {[%clk 0:02:58]} 15. Kb1 {[%clk 0:02:38]}  Bxe3 {[%clk 0:02:57]} 16. Qxe3 {[%clk 0:02:39]}  b5 {[%clk 0:02:55]} 17. h4 {[%clk 0:02:34]}  Rc8 {[%clk 0:02:51]} 18. Qa7 {[%clk 0:02:22]}  Ra8 {[%clk 0:02:43]} 19. Qf2 {[%clk 0:02:14]}  a5 {[%clk 0:02:40]} 20. f4 {[%clk 0:02:09]}  a4 {[%clk 0:02:39]} 21. Nd2 {[%clk 0:02:09]}  O-O {[%clk 0:02:29]} 22. Ne4 {[%clk 0:01:59]}  Qc7 {[%clk 0:02:29]} 23. f5 {[%clk 0:01:57]}  a3 {[%clk 0:02:23]} 24. b3 {[%clk 0:01:56]}  Rfc8 {[%clk 0:02:21]} 25. g4 {[%clk 0:01:51]}  hxg4 {[%clk 0:02:18]} 26. Rhg1 {[%clk 0:01:47]}  Nc5 {[%clk 0:02:16]} 27. Nxc5 {[%clk 0:01:44]}  Qxc5 {[%clk 0:02:17]} 28. Qxc5 {[%clk 0:01:43]}  Rxc5 {[%clk 0:02:18]} 29. Rxg4 {[%clk 0:01:43]}  Rac8 {[%clk 0:02:14]} 30. Rd2 {[%clk 0:01:42]}  f6 {[%clk 0:02:08]} 31. h5 {[%clk 0:01:29]}  Kh7 {[%clk 0:02:04]} 32. Rg6 {[%clk 0:01:29]}  Rc3 {[%clk 0:01:47]} 33. h6 {[%clk 0:01:24]}  R8c7 {[%clk 0:01:40]} 34. Rh2 {[%clk 0:01:19]}  Kg8 {[%clk 0:01:38]} 35. Rhg2 {[%clk 0:01:16]}  Rf3 {[%clk 0:01:29]} 36. Rxg7+ {[%clk 0:01:13]}  Rxg7 {[%clk 0:01:27]} 37. Rxg7+ {[%clk 0:01:14]}  Kf8 {[%clk 0:01:21]} 38. Kc1 {[%clk 0:01:14]}  Rh3 {[%clk 0:01:05]} 39. Rd7 {[%clk 0:01:00]}  Rxh6 {[%clk 0:01:03]} 40. Rxd6 {[%clk 0:01:00]}  Ke7 {[%clk 0:01:01]} 41. Rb6 {[%clk 0:00:57]}  Rh1+ {[%clk 0:00:32]} 42. Kd2 {[%clk 0:00:56]}  Ra1 {[%clk 0:00:33]} 43. Rxb5 {[%clk 0:00:53]}  Rxa2 {[%clk 0:00:29]} 44. Rb7+ {[%clk 0:00:52]}  Kd6 {[%clk 0:00:29]} 45. Rb6+ {[%clk 0:00:50]}  Kxd5 {[%clk 0:00:29]} 46. Rxf6 {[%clk 0:00:50]}  Ra1 {[%clk 0:00:28]} 47. Rf8 {[%clk 0:00:50]}  Ke4 {[%clk 0:00:18]} 48. f6 {[%clk 0:00:48]}  Rf1 {[%clk 0:00:17]} 49. Ra8 {[%clk 0:00:42]}  Rxf6 {[%clk 0:00:14]} 50. Rxa3 {[%clk 0:00:42]}  Kf3 {[%clk 0:00:12]} 51. b4+ {[%clk 0:00:41]}  Kf2 {[%clk 0:00:11]} 52. b5 {[%clk 0:00:37]}  e4 {[%clk 0:00:09]} 53. Rb3 {[%clk 0:00:34]}  Rd6+ {[%clk 0:00:09]} 54. Kc3 {[%clk 0:00:27]}  e3 {[%clk 0:00:10]} 55. Kc4 {[%clk 0:00:27]}  e2 {[%clk 0:00:09]} 56. b6 {[%clk 0:00:26]}  e1=Q {[%clk 0:00:08]} 57. Kc5 {[%clk 0:00:27]}  Qe5+ {[%clk 0:00:07]} 58. Kb4 {[%clk 0:00:26]}  Rxb6+ {[%clk 0:00:07]} 59. Ka3 {[%clk 0:00:26]}  Qa1# {[%clk 0:00:06]} 0-1


[Site "https://www.chess.com"]

[Event "Titled Tuesday Blitz February 28 Early 2023"]
[White "Kornyukov, Alexey"]
[Black "Weetik, Vjacheslav"]
[WhiteFideId "4150457"]
[BlackFideId "4153472"]
[WhiteElo "2352"]
[BlackElo "2469"]
[Result "0-1"]
[Round "01"]
[TimeControl "180+2"]
[Date "2023.02.28"]
[WhiteClock "0:01:47"]
[BlackClock "0:00:55"]

1. e4 {[%clk 0:02:58]}  c6 {[%clk 0:02:57]} 2. d4 {[%clk 0:02:57]}  d5 {[%clk 0:02:57]} 3. e5 {[%clk 0:02:51]}  Bf5 {[%clk 0:02:57]} 4. Bd3 {[%clk 0:02:51]}  Bxd3 {[%clk 0:02:55]} 5. Qxd3 {[%clk 0:02:50]}  e6 {[%clk 0:02:56]} 6. Nf3 {[%clk 0:02:49]}  Qa5+ {[%clk 0:02:53]} 7. Bd2 {[%clk 0:02:48]}  Qa6 {[%clk 0:02:52]} 8. O-O {[%clk 0:02:45]}  Qxd3 {[%clk 0:02:49]} 9. cxd3 {[%clk 0:02:45]}  Ne7 {[%clk 0:02:49]} 10. Nc3 {[%clk 0:02:45]}  h5 {[%clk 0:02:47]} 11. b4 {[%clk 0:02:45]}  Nd7 {[%clk 0:02:21]} 12. b5 {[%clk 0:02:44]}  c5 {[%clk 0:02:13]} 13. dxc5 {[%clk 0:02:40]}  Nxc5 {[%clk 0:02:13]} 14. d4 {[%clk 0:02:31]}  Nd7 {[%clk 0:02:06]} 15. Rac1 {[%clk 0:02:29]}  Nb6 {[%clk 0:02:03]} 16. a4 {[%clk 0:02:27]}  Nf5 {[%clk 0:01:58]} 17. Bf4 {[%clk 0:02:19]}  Ba3 {[%clk 0:01:53]} 18. Rc2 {[%clk 0:02:16]}  Rc8 {[%clk 0:01:53]} 19. Ra1 {[%clk 0:02:13]}  Bb4 {[%clk 0:01:26]} 20. Rac1 {[%clk 0:02:04]}  Kd7 {[%clk 0:01:22]} 21. Na2 {[%clk 0:02:01]}  Ba5 {[%clk 0:01:07]} 22. Ng5 {[%clk 0:01:59]}  Rxc2 {[%clk 0:01:05]} 23. Rxc2 {[%clk 0:01:57]}  Nxd4 {[%clk 0:01:05]} 24. Rc1 {[%clk 0:01:49]}  Ne2+ {[%clk 0:01:03]} 25. Kf1 {[%clk 0:01:47]}  Nxf4 {[%clk 0:00:55]} 0-1


[Site "https://www.chess.com"]

[Event "Titled Tuesday Blitz February 28 Early 2023"]
[White "Piriflillo"]
[Black "Orlov, Georgi"]
[BlackFideId "2011271"]
[WhiteElo "2326"]
[BlackElo "2635"]
[Result "0-1"]
[Round "01"]
[TimeControl "180+2"]
[Date "2023.02.28"]
[WhiteClock "0:01:13"]
[BlackClock "0:01:20"]

1. e4 {[%clk 0:02:59]}  c5 {[%clk 0:02:54]} 2. Nf3 {[%clk 0:02:58]}  e6 {[%clk 0:02:53]} 3. b3 {[%clk 0:02:57]}  Nf6 {[%clk 0:02:51]} 4. e5 {[%clk 0:02:54]}  Nd5 {[%clk 0:02:49]} 5. Bb2 {[%clk 0:02:52]}  Nc6 {[%clk 0:02:47]} 6. c4 {[%clk 0:02:46]}  Nb6 {[%clk 0:02:23]} 7. g3 {[%clk 0:02:43]}  Be7 {[%clk 0:02:22]} 8. Bg2 {[%clk 0:02:43]}  O-O {[%clk 0:02:22]} 9. O-O {[%clk 0:02:43]}  f6 {[%clk 0:02:22]} 10. exf6 {[%clk 0:02:27]}  Bxf6 {[%clk 0:02:20]} 11. d4 {[%clk 0:02:24]}  d5 {[%clk 0:02:10]} 12. cxd5 {[%clk 0:02:19]}  exd5 {[%clk 0:02:04]} 13. Qd2 {[%clk 0:02:14]}  c4 {[%clk 0:01:59]} 14. Nc3 {[%clk 0:02:12]}  Bg4 {[%clk 0:01:52]} 15. Rfe1 {[%clk 0:02:10]}  Bxf3 {[%clk 0:01:49]} 16. Bxf3 {[%clk 0:02:09]}  Bxd4 {[%clk 0:01:48]} 17. Qe2 {[%clk 0:02:05]}  Qf6 {[%clk 0:01:44]} 18. Bxd5+ {[%clk 0:01:48]}  Nxd5 {[%clk 0:01:32]} 19. Nxd5 {[%clk 0:01:48]}  Qxf2+ {[%clk 0:01:32]} 20. Qxf2 {[%clk 0:01:39]}  Bxf2+ {[%clk 0:01:32]} 21. Kg2 {[%clk 0:01:40]}  Bxe1 {[%clk 0:01:32]} 22. Rxe1 {[%clk 0:01:40]}  cxb3 {[%clk 0:01:31]} 23. axb3 {[%clk 0:01:40]}  Rae8 {[%clk 0:01:30]} 24. Rxe8 {[%clk 0:01:21]}  Rxe8 {[%clk 0:01:28]} 25. Nf4 {[%clk 0:01:21]}  Kf7 {[%clk 0:01:26]} 26. Bc3 {[%clk 0:01:21]}  Re3 {[%clk 0:01:25]} 27. Bd2 {[%clk 0:01:15]}  Rxb3 {[%clk 0:01:24]} 28. Kh3 {[%clk 0:01:15]}  a5 {[%clk 0:01:24]} 29. Nd5 {[%clk 0:01:14]}  a4 {[%clk 0:01:23]} 30. Nc3 {[%clk 0:01:14]}  a3 {[%clk 0:01:23]} 31. Ne4 {[%clk 0:01:12]}  a2 {[%clk 0:01:20]} 32. Bc3 {[%clk 0:01:12]}  Rxc3 {[%clk 0:01:20]} 33. Nxc3 {[%clk 0:01:13]}  a1=Q {[%clk 0:01:20]} 0-1


[Site "https://www.chess.com"]